fUSD/lending_fUSD_20240514
["ID","MTS","AMOUNT","RATE_DAILY","PERIOD"]
[327006262,1715706632169,-3006.7350034,0.00010391,2]
[327006263,1715706632180,-7146.7550335,0.00010392,2]
[327006264,1715706632190,-476.19200871,0.00010395,2]
[327006265,1715706632199,-155.16646148,0.00010404,2]
[327006266,1715706632209,-407826.27774194,0.00010405,2]
[327006267,1715706632218,-180.07303242,0.00010406,2]
[327006268,1715706632228,-366.93295971,0.00010406,2]
[327006269,1715706632237,-211.25694414,0.00010407,2]
[327006270,1715706632247,-14729.0,0.00010408,2]
[327006271,1715706632256,-663.4,0.00010411,2]
[327006272,1715706632265,-750.14,0.00010808,2]
[327006273,1715706632275,-11462.44,0.00010831,2]
[327006274,1715706632285,-9981.94,0.00010868,2]
[327006275,1715706632294,-17205.91,0.00010868,2]
[327006276,1715706632304,-1895.25,0.00010895,2]
[327006277,1715706632314,-250.0,0.00010923,2]
[327006278,1715706632323,-7175.91,0.00010959,2]
[327006279,1715706632332,-5953.1,0.00010959,2]
[327006280,1715706632342,-1000.0,0.00010959,2]
[327006281,1715706632351,-158.37,0.0001096,2]
[327006282,1715706632360,-158.37,0.0001096,2]
[327006283,1715706632369,-972.62,0.00010966,2]
[327006284,1715706632378,-657.69,0.0001098,2]
[327006285,1715706632387,-20854.57307642,0.00010999,2]
[327006286,1715706632396,-893.0,0.00011,2]
[327006287,1715706632406,-893.0,0.00011,2]
[327006288,1715706632415,-200.0,0.00011,2]
[327006289,1715706632424,-250.0,0.00011059,2]
[327006290,1715706632433,-165.64,0.00011239,2]
[327006291,1715706632443,-250.0,0.00011332,2]
[327006292,1715706632452,-249.86,0.00011355,2]
[327006293,1715706632463,-499.99,0.0001139,2]
[327006294,1715706632474,-300.0,0.000119,4]
[327006295,1715706632485,-1296.85747937,0.00011968,2]
[327006297,1715706632494,-162.36,0.00011985,2]
[327006299,1715706632503,-595.0,0.00012,2]
[327006301,1715706632512,-893.0,0.00012,2]
[327006303,1715706632522,-595.0,0.00012,2]
[327006305,1715706632532,-700.0,0.00012,4]
[327006307,1715706632541,-1000.0,0.000121,4]
[327006309,1715706632550,-750.14,0.00012159,2]
[327006310,1715706632561,-1400.0,0.000122,4]
[327006311,1715706632570,-876.43,0.00012241,2]
[327006312,1715706632580,-209.19693991,0.000123,2]
[327006313,1715706632590,-1800.0,0.000123,4]
[327006314,1715706632600,-6534.51379208,0.00012335,2]
[327006315,1715706632610,-300.0,0.000124,4]
[327006316,1715706632619,-2071.41004228,0.000125,2]
[327006317,1715706632628,-27457.15732316,0.000125,2]
[327006318,1715706632637,-300.0,0.000125,4]
[327006319,1715706632647,-1612.81433416,0.000125,2]
[327006320,1715706632656,-209.1969399,0.000125,2]
[327006321,1715706632665,-2071.4100422,0.00012536,2]
[327006322,1715706632675,-2071.4100422,0.00012573,2]
[327006323,1715706632685,-158.37,0.0001259,2]
[327006324,1715706632695,-158.37,0.0001259,2]
[327006325,1715706632704,-158.37,0.0001259,2]
[327006326,1715706632714,-158.37,0.0001259,2]
[327006327,1715706632723,-158.37,0.0001259,2]
[327006328,1715706632732,-158.37,0.0001259,2]
[327006329,1715706632741,-158.37,0.0001259,2]
[327006330,1715706632750,-158.37,0.0001259,2]
[327006331,1715706632760,-3058.91080673,0.00012598,2]
[327006332,1715706632769,-155.0,0.00012598,2]
[327006333,1715706632778,-335.38617073,0.00012598,2]
[327006334,1715706632788,-176.91311604,0.00012598,2]
[327006335,1715706632797,-268.1006071,0.00012598,2]
[327006336,1715706632806,-332.06596342,0.00012598,2]
[327006337,1715706632816,-155.06520925,0.00012598,2]
[327006338,1715706632826,-522.96111122,0.00012598,2]
[327006339,1715706632835,-463452.2739472,0.00012598,2]
[327006340,1715706632848,-291.44373864,0.00012598,2]
[327006341,1715706633392,-799.6959202,0.00012598,2]
[327006342,1715706633404,-594.2950724,0.00012598,2]
[327006346,1715706638203,-1138.18072319,0.00012598,2]
[327006347,1715706638214,-11742.36006912,0.00012598,2]
[327006348,1715706638316,-394.75813382,0.00012598,2]
[327006349,1715706638327,-375561.19648176,0.00012598,2]
[327006350,1715706638339,-107688.61635471,0.00012598,2]
[327006351,1715706638349,-4425.44526103,0.00012599,2]
[327006352,1715706638358,-553.0,0.000126,2]
[327006353,1715706638367,-28900.40254533,0.000126,2]
[327006359,1715706640282,-78.29311194,0.000126,2]
[327006360,1715706642719,-9265.45803534,0.000126,2]
[327006361,1715706642731,-760.01039041,0.000126,2]
[327006362,1715706642742,-738.70204546,0.000126,2]
[327006363,1715706642822,-312.3160075,0.000126,2]
[327006408,1715706643143,-1765.648,0.000126,2]
[327006410,1715706643159,-24191.78903486,0.000126,2]
[327006415,1715706643246,-650.96828781,0.000126,2]
[327006416,1715706643258,-28922.33337604,0.000126,2]
[327006417,1715706643359,-125018.91064322,0.000126,2]
[327006418,1715706643369,-129590.38781138,0.000126,2]
[327006419,1715706643454,-10838.62430379,0.000126,2]
[327006420,1715706643465,-41020.0,0.000126,2]
[327006421,1715706643477,-619024.0540177,0.000126,2]
[327006422,1715706646058,-290.92,0.000126,2]
[327006423,1715706646077,-25141.90562707,0.000126,2]
[327006424,1715706646088,-1650.9497965,0.000126,2]
[327006425,1715706646165,-701.90716702,0.000126,2]
[327006426,1715706646335,-854.07569873,0.000126,2]
[327006429,1715707447294,-771.69215318,0.00011968,7]
[327006430,1715707447322,-228.30784682,0.000126,4]
[327006434,1715707760174,-2387.91364451,8.611e-05,2]
[327006437,1715707832295,-656.07891958,8.607e-05,2]
[327006438,1715707832304,-344.23057203,8.608e-05,2]
[327006439,1715707832314,-49.69050839,8.608e-05,2]
[327006440,1715707832325,-450.0,8.608e-05,2]
[327006441,1715707832336,-901.60402774,8.608e-05,2]
[327006442,1715707832345,-534.10085754,8.61e-05,2]
[327006443,1715707832354,-174.93,9.25e-05,2]
[327006444,1715707832363,-3088.25281878,0.0001041,2]
[327006445,1715707832373,-520.72,0.00010411,2]
[327006446,1715707832384,-1000.0,0.00011,2]
[327006447,1715707832393,-200.0,0.00011,2]
[327006448,1715707832402,-162.36,0.00011479,2]
[327006449,1715707832411,-450.09,0.0001148,2]
[327006450,1715707832420,-4221.13158711,0.0001149,2]
[327006451,1715707832432,-2432.81841289,0.0001149,2]
[327006452,1715707832448,-250.0,0.00011562,2]
[327006453,1715707832457,-250.0,0.00011575,2]
[327006454,1715707832467,-549.91,0.00011623,2]
[327006455,1715707832477,-158.04,0.00011695,2]
[327006456,1715707832486,-499.99,0.00011968,2]
[327006457,1715707832496,-1563.60941232,0.00012125,2]
[327006458,1715707832505,-370.0328,0.000124,2]
[327006459,1715707832514,-37769.87112775,0.00012499,2]
[327006460,1715707832525,-503.3847,0.000125,2]
[327006461,1715707832536,-48832.803,0.000125,2]
[327006462,1715707832545,-174.4479941,0.000125,2]
[327006463,1715707832555,-1678.55753165,0.000125,2]
[327006464,1715707832563,-177.79726392,0.000125,2]
[327006465,1715707832573,-1678.55753165,0.00012536,2]
[327006466,1715707832582,-1678.55753165,0.00012573,2]
[327006467,1715707832591,-527.64248455,0.00012597,2]
[327006468,1715707832600,-155.0,0.00012598,2]
[327006469,1715707832610,-186.68792669,0.00012598,2]
[327006470,1715707832619,-156.4545868,0.00012598,2]
[327006471,1715707832631,-4425.44526103,0.00012598,2]
[327006472,1715707832641,-239.38744252,0.00012598,2]
[327006473,1715707832650,-155.0,0.00012598,2]
[327006474,1715707832660,-390.71564742,0.00012599,2]
[327006475,1715707832669,-685.68606109,0.00012599,2]
[327006477,1715707832679,-11624.99978887,0.00012599,2]
[327006479,1715707832689,-1034.52556333,0.00012599,3]
[327006481,1715707832699,-491713.34044819,0.000126,2]
[327006482,1715707832711,-621.77146932,0.000126,2]
[327006483,1715707832722,-883.97785601,0.000126,2]
[327006484,1715707832733,-450.25,0.000126,2]
[327006485,1715707832744,-791.24822385,0.000126,2]
[327006486,1715707832771,-1677.415985,0.000126,2]
[327006488,1715707838620,-3006.7350034,8.606e-05,2]
[327006489,1715707838633,-19035.23963423,0.000126,2]
[327006490,1715707838646,-141567.46416107,0.000126,2]
[327006491,1715707838698,-11624.99978887,0.000126,2]
[327006492,1715707838712,-258.21238553,0.000126,2]
[327006494,1715707840776,-323.1020054,0.000126,2]
[327006495,1715707840791,-289.38999998,0.000126,2]
[327006496,1715707840806,-1415.55102347,0.000126,2]
[327006497,1715707840820,-2795.14364277,0.000126,2]
[327006498,1715707840836,-1077.71805683,0.000126,2]
[327006499,1715707840851,-1464.85383896,0.000126,2]
[327006500,1715707840865,-1138.0,0.000126,2]
[327006501,1715707840913,-901.46094364,0.000126,2]
[327006502,1715707840928,-773.95903373,0.000126,2]
[327006503,1715707840942,-738.7893376,0.000126,2]
[327006504,1715707840957,-1591.29103702,0.000126,2]
[327006505,1715707840971,-1028.443,0.000126,2]
[327006506,1715707840984,-21169.5176462,0.000126,2]
[327006507,1715707840999,-3950.40628861,0.000126,2]
[327006532,1715707843667,-115523.8428329,0.000126,2]
[327006538,1715707846344,-96.56931396,0.00012599,2]
[327006539,1715707846401,-187.41454886,0.00012599,2]
[327006540,1715707846410,-20531.33890851,0.000126,2]
[327006541,1715707846561,-3188.65,0.000126,2]
[327007998,1715709033499,-260.45583852,0.0001041,2]
[327007999,1715709033508,-3006.7350034,0.0001041,2]
[327008000,1715709033518,-630.23,0.00010411,2]
[327008001,1715709033527,-153.14,0.0001117,2]
[327008002,1715709033535,-150.0,0.00011179,2]
[327008003,1715709033544,-284817.12914826,0.0001118,2]
[327008004,1715709033553,-250.0,0.00011194,2]
[327008005,1715709033562,-250.0,0.00011196,2]
[327008006,1715709033571,-158.04,0.00011223,2]
[327008007,1715709033581,-360.08,0.00011274,2]
[327008008,1715709033590,-5084.19,0.00011319,2]
[327008009,1715709033599,-1047.19,0.00011321,2]
[327008010,1715709033609,-155.0,0.00011338,2]
[327008011,1715709033618,-250.0,0.00011353,2]
[327008012,1715709033627,-188.19,0.00011377,2]
[327008013,1715709033636,-168.92,0.00011495,2]
[327008014,1715709033645,-639.92,0.00011551,2]
[327008015,1715709033656,-500.0,0.00011994,2]
[327008017,1715709033665,-500.0,0.00011994,2]
[327008019,1715709033674,-500.0,0.00011994,2]
[327008021,1715709033685,-500.0,0.00011994,2]
[327008023,1715709033694,-500.0,0.00011994,2]
[327008025,1715709033703,-500.0,0.00011994,2]
[327008027,1715709033711,-500.0,0.00011994,2]
[327008029,1715709033721,-500.0,0.00011994,2]
[327008031,1715709033730,-500.0,0.00011994,2]
[327008033,1715709033739,-500.0,0.00011994,2]
[327008035,1715709033747,-500.0,0.00011994,2]
[327008037,1715709033756,-500.0,0.00011994,2]
[327008039,1715709033765,-500.0,0.00011994,2]
[327008041,1715709033775,-500.0,0.00011994,2]
[327008043,1715709033783,-500.0,0.00011994,2]
[327008045,1715709033792,-500.0,0.00011994,2]
[327008047,1715709033801,-500.0,0.00011994,2]
[327008049,1715709033811,-500.0,0.00011994,2]
[327008051,1715709033820,-500.0,0.00011994,2]
[327008053,1715709033830,-500.0,0.00011994,2]
[327008055,1715709033843,-500.0,0.00011994,2]
[327008057,1715709033852,-500.0,0.00011994,2]
[327008059,1715709033861,-500.0,0.00011994,2]
[327008061,1715709033870,-216.18,0.00011994,2]
[327008063,1715709033879,-500.0,0.00011994,2]
[327008065,1715709033889,-500.0,0.00011994,2]
[327008067,1715709033898,-500.0,0.00011994,2]
[327008069,1715709033908,-500.0,0.00011994,2]
[327008071,1715709033918,-687.3637,0.00012,2]
[327008073,1715709033927,-767.99965936,0.00012287,2]
[327008075,1715709033936,-187.0,0.00012297,2]
[327008077,1715709033945,-25179.91408517,0.00012499,2]
[327008079,1715709033954,-305.9569,0.000125,2]
[327008081,1715709033963,-1000.0,0.000125,2]
[327008083,1715709033972,-5545.0387,0.000125,2]
[327008085,1715709033980,-746.5163,0.000125,2]
[327008087,1715709033990,-104480.6028,0.000125,2]
[327008089,1715709033999,-2145.6251,0.000125,2]
[327008091,1715709034007,-171.52880006,0.000125,2]
[327008093,1715709034016,-1563.22315175,0.000125,2]
[327008095,1715709034025,-198.67192209,0.000125,2]
[327008097,1715709034035,-1563.22315168,0.00012536,2]
[327008099,1715709034044,-1563.22315168,0.00012573,2]
[327008101,1715709034053,-250.83906553,0.0001259,2]
[327008102,1715709034062,-44809.71380381,0.00012597,2]
[327008103,1715709034074,-674.663,0.00012597,2]
[327008104,1715709034085,-11227.55934793,0.00012597,2]
[327008105,1715709034093,-162.46980569,0.00012598,2]
[327008106,1715709034103,-710.1412678,0.00012598,2]
[327008107,1715709034112,-266.10096952,0.00012598,2]
[327008108,1715709034122,-217.20437047,0.00012598,2]
[327008109,1715709034132,-409.38656773,0.00012598,2]
[327008110,1715709034141,-1624.03422621,0.00012598,2]
[327008111,1715709034151,-155.0,0.00012598,2]
[327008112,1715709034163,-246.7600202,0.00012598,2]
[327008113,1715709034174,-155.06471558,0.00012598,2]
[327008114,1715709034184,-326.47360097,0.00012598,2]
[327008115,1715709034194,-155.32500028,0.00012598,2]
[327008116,1715709034203,-1765.62953938,0.00012598,2]
[327008117,1715709034213,-515.72707236,0.00012598,2]
[327008118,1715709034222,-2852.30088182,0.00012598,2]
[327008119,1715709034231,-883.22495975,0.00012598,2]
[327008120,1715709034240,-309.452495,0.00012598,2]
[327008121,1715709034249,-849.81345915,0.00012599,2]
[327008122,1715709034258,-59425.20408202,0.000126,2]
[327008123,1715709034269,-866.7628267,0.000126,2]
[327008124,1715709034287,-2875.0,0.000126,2]
[327008128,1715709038583,-141567.46416107,0.000126,2]
[327008131,1715709038752,-306.63,0.000126,2]
[327008132,1715709038764,-810.16228092,0.000126,2]
[327008139,1715709040964,-614.69694,0.000126,2]
[327008140,1715709040977,-732.85758744,0.000126,2]
[327008141,1715709040989,-411.26739889,0.000126,2]
[327008142,1715709041001,-554.24396679,0.000126,2]
[327008143,1715709041013,-712.37402927,0.000126,2]
[327008144,1715709041024,-31227.5,0.000126,2]
[327008457,1715709043886,-35094.047818,0.000126,2]
[327008460,1715709043898,-11127.53829156,0.000126,2]
[327008465,1715709043943,-0.00163294,0.000126,2]
[327008481,1715709044089,-292096.87701452,0.000126,2]
[327008483,1715709044098,-3645.911,0.000126,2]
[327008485,1715709044110,-200.0,0.000126,2]
[327008487,1715709044119,-200.0,0.000126,2]
[327008489,1715709044128,-2000.0,0.000126,2]
[327008491,1715709044138,-200.0,0.000126,2]
[327008493,1715709044148,-2165.85833,0.000126,2]
[327008495,1715709044157,-200.0,0.000126,2]
[327008497,1715709044167,-1563.22315168,0.00012609,2]
[327008499,1715709044176,-661.0,0.00012631,2]
[327008501,1715709044185,-1563.22315168,0.00012645,2]
[327008503,1715709044195,-1563.22315168,0.00012682,2]
[327008505,1715709044205,-360.08,0.00012683,2]
[327008507,1715709044215,-150.0,0.00012708,2]
[327008509,1715709044224,-150.0,0.0001271,2]
[327008511,1715709044233,-150.0,0.0001271,2]
[327008513,1715709044243,-1500.0,0.00012713,2]
[327008515,1715709044252,-150.0,0.00012714,2]
[327008517,1715709044262,-1563.22315168,0.00012718,2]
[327008519,1715709044272,-160.86858204,0.00012719,2]
[327008521,1715709044281,-150.0,0.00012721,2]
[327008523,1715709044290,-150.0,0.00012724,2]
[327008525,1715709044299,-150.0,0.00012725,2]
[327008528,1715709044313,-200.0,0.00012726,2]
[327008530,1715709044322,-150.0,0.00012726,2]
[327008532,1715709044331,-200.0,0.00012726,2]
[327008534,1715709044342,-2000.0,0.00012726,2]
[327008536,1715709044352,-200.0,0.00012726,2]
[327008538,1715709044361,-150.0,0.00012726,2]
[327008541,1715709044371,-200.0,0.00012726,2]
[327008543,1715709044380,-1500.0,0.00012727,2]
[327008545,1715709044390,-1500.0,0.00012727,2]
[327008547,1715709044400,-150.0,0.00012728,2]
[327008549,1715709044409,-150.0,0.00012728,2]
[327008551,1715709044419,-150.0,0.00012732,2]
[327008553,1715709044429,-150.0,0.00012732,2]
[327008555,1715709044438,-150.0,0.00012734,2]
[327008557,1715709044447,-150.0,0.00012738,2]
[327008559,1715709044457,-150.0,0.00012738,2]
[327008561,1715709044466,-9194.0539891,0.00012738,2]
[327008563,1715709044476,-150.0,0.0001274,2]
[327008565,1715709044485,-150.0,0.00012741,2]
[327008567,1715709044494,-150.0,0.00012742,2]
[327008569,1715709044504,-150.0,0.00012742,2]
[327008571,1715709044514,-1500.0,0.00012745,2]
[327008573,1715709044524,-1500.0,0.00012747,2]
[327008575,1715709044533,-39376.71039747,0.00012748,2]
[327008577,1715709044543,-150.0,0.00012748,2]
[327008578,1715709044552,-150.0,0.00012749,2]
[327008580,1715709044562,-150.0,0.00012754,2]
[327008582,1715709044571,-1563.22315168,0.00012755,2]
[327008584,1715709044581,-150.0,0.00012756,2]
[327008586,1715709044591,-150.0,0.00012758,2]
[327008588,1715709044601,-200.0,0.00012759,2]
[327008590,1715709044610,-1500.0,0.00012759,2]
[327008592,1715709044621,-1500.0,0.00012759,2]
[327008594,1715709044630,-150.0,0.0001276,2]
[327008596,1715709044639,-150.0,0.00012763,2]
[327008598,1715709044650,-1500.0,0.00012764,2]
[327008600,1715709044659,-1500.0,0.00012765,2]
[327008602,1715709044670,-1500.0,0.00012765,2]
[327008604,1715709044680,-150.0,0.00012765,2]
[327008606,1715709044689,-1500.0,0.00012766,2]
[327008608,1715709044699,-150.0,0.00012766,2]
[327008610,1715709044708,-1500.0,0.00012767,2]
[327008612,1715709044717,-1500.0,0.00012769,2]
[327008614,1715709044726,-1500.0,0.0001277,2]
[327008616,1715709044735,-150.0,0.00012772,2]
[327008617,1715709044744,-1500.0,0.00012775,2]
[327008619,1715709044754,-150.0,0.00012776,2]
[327008621,1715709044764,-217.91924981,0.00012776,2]
[327008623,1715709044774,-1682.1668305,0.00012776,2]
[327008626,1715709044784,-480.90028865,0.00012776,2]
[327008627,1715709044794,-203.03478331,0.00012776,2]
[327008629,1715709044804,-150.0,0.00012777,2]
[327008631,1715709044814,-150.0,0.00012781,2]
[327008634,1715709044824,-1500.0,0.00012782,2]
[327008636,1715709044837,-150.0,0.00012784,2]
[327008638,1715709044847,-150.0,0.00012785,2]
[327008640,1715709044856,-1500.0,0.00012787,2]
[327008642,1715709044865,-150.0,0.00012788,2]
[327008644,1715709044875,-150.0,0.00012788,2]
[327008646,1715709044885,-1500.0,0.00012789,2]
[327008647,1715709044894,-1500.0,0.00012789,2]
[327008648,1715709044903,-150.0,0.00012789,2]
[327008649,1715709044914,-1563.22315168,0.00012791,2]
[327008650,1715709044924,-1500.0,0.00012794,2]
[327008651,1715709044933,-1500.0,0.00012796,2]
[327008652,1715709044942,-4222.946375,0.000128,2]
[327008653,1715709044952,-1500.0,0.000128,2]
[327008654,1715709044961,-150.0,0.000128,2]
[327008655,1715709044971,-300.0,0.000128,2]
[327008656,1715709044980,-150.0,0.000128,2]
[327008657,1715709044989,-150.0,0.00012805,2]
[327008658,1715709044998,-150.0,0.00012807,2]
[327008659,1715709045009,-150.0,0.0001281,2]
[327008660,1715709045018,-1500.0,0.00012811,2]
[327008661,1715709045028,-1500.0,0.00012812,2]
[327008662,1715709045037,-150.0,0.00012813,2]
[327008663,1715709045046,-150.0,0.00012814,2]
[327008665,1715709045056,-150.0,0.00012815,2]
[327008666,1715709045068,-304.33508682,0.00012817,2]
[327008669,1715709045078,-150.0,0.00012824,2]
[327008671,1715709045088,-150.0,0.00012824,2]
[327008672,1715709045099,-150.0,0.00012824,2]
[327008675,1715709045108,-1500.0,0.00012827,2]
[327008677,1715709045118,-1563.22315168,0.00012827,2]
[327008679,1715709045127,-1500.0,0.00012828,2]
[327008681,1715709045136,-150.0,0.00012829,2]
[327008683,1715709045146,-150.0,0.00012829,2]
[327008685,1715709045155,-1500.0,0.00012829,2]
[327008687,1715709045165,-1500.0,0.00012831,2]
[327008689,1715709045175,-150.0,0.00012831,2]
[327008691,1715709045185,-500.0,0.00012832,2]
[327008692,1715709045194,-150.0,0.00012832,2]
[327008693,1715709045203,-150.0,0.00012832,2]
[327008694,1715709045213,-150.0,0.00012837,2]
[327008695,1715709045222,-1682.16683048,0.00012838,2]
[327008696,1715709045232,-480.90028864,0.00012838,2]
[327008697,1715709045241,-150.0,0.0001284,2]
[327008698,1715709045251,-500.0,0.00012841,2]
[327008699,1715709045261,-1500.0,0.00012842,2]
[327008700,1715709045271,-1500.0,0.00012843,2]
[327008701,1715709045280,-150.0,0.00012844,2]
[327008702,1715709045290,-150.0,0.00012846,2]
[327008703,1715709045300,-1500.0,0.00012847,2]
[327008704,1715709045310,-1500.0,0.00012848,2]
[327008705,1715709045319,-1500.0,0.00012848,2]
[327008706,1715709045329,-150.0,0.00012849,2]
[327008707,1715709045338,-500.0,0.00012849,2]
[327008708,1715709045348,-150.0,0.00012851,2]
[327008709,1715709045357,-200.0,0.00012853,2]
[327008710,1715709045366,-200.0,0.00012853,2]
[327008711,1715709045376,-2000.0,0.00012853,2]
[327008712,1715709045387,-200.0,0.00012853,2]
[327008713,1715709045397,-150.0,0.00012855,2]
[327008714,1715709045406,-150.0,0.00012855,2]
[327008715,1715709045415,-1500.0,0.00012856,2]
[327008716,1715709045425,-331.01264407,0.00012858,2]
[327008717,1715709045434,-500.0,0.00012858,2]
[327008718,1715709045443,-1500.0,0.00012859,2]
[327008719,1715709045453,-1500.0,0.00012861,2]
[327008720,1715709045462,-1500.0,0.00012863,2]
[327008721,1715709045471,-113.83393931,0.00012863,2]
[327008722,1715709045771,-36.16606069,0.00012863,2]
[327008723,1715709045782,-1563.22315168,0.00012864,2]
[327008724,1715709045791,-1500.0,0.00012866,2]
[327008725,1715709045800,-500.0,0.00012867,2]
[327008726,1715709045810,-150.0,0.00012867,2]
[327008727,1715709046024,-1500.0,0.00012868,2]
[327008728,1715709046034,-150.0,0.00012868,2]
[327008729,1715709046044,-150.0,0.0001287,2]
[327008730,1715709046053,-150.0,0.00012871,2]
[327008731,1715709046063,-1500.0,0.00012871,2]
[327008732,1715709046072,-150.0,0.00012871,2]
[327008733,1715709046081,-150.0,0.00012872,2]
[327008734,1715709046090,-150.0,0.00012873,2]
[327008735,1715709046099,-150.0,0.00012875,2]
[327008736,1715709046108,-500.0,0.00012876,2]
[327008737,1715709046118,-500.0,0.00012876,2]
[327008738,1715709046127,-518.75427243,0.00012876,2]
[327008739,1715709046136,-240.674293,0.00012876,2]
[327008740,1715709046146,-520.32397371,0.00012876,2]
[327008741,1715709046156,-500.0,0.00012876,2]
[327008742,1715709046166,-514.44794229,0.00012876,2]
[327008744,1715709046176,-500.0,0.00012876,2]
[327008746,1715709046185,-500.0,0.00012876,2]
[327008747,1715709046195,-500.0,0.00012876,2]
[327008748,1715709046203,-500.0,0.00012876,2]
[327008749,1715709046212,-500.0,0.00012876,2]
[327008750,1715709046221,-500.0,0.00012876,2]
[327008751,1715709046231,-500.0,0.00012876,2]
[327008752,1715709046240,-500.0,0.00012876,2]
[327008753,1715709046249,-500.0,0.00012876,2]
[327008754,1715709046258,-500.0,0.00012876,2]
[327008755,1715709046268,-500.0,0.00012876,2]
[327008756,1715709046278,-500.0,0.00012876,2]
[327008757,1715709046288,-500.0,0.00012876,2]
[327008758,1715709046299,-985.51,0.00012876,2]
[327008759,1715709046310,-985.51,0.00012876,2]
[327008760,1715709046319,-985.51,0.00012876,2]
[327008761,1715709046329,-985.51,0.00012876,2]
[327008762,1715709046338,-985.51,0.00012876,2]
[327008763,1715709046347,-985.51,0.00012876,2]
[327008766,1715709046356,-985.51,0.00012876,2]
[327008769,1715709046365,-985.51,0.00012876,2]
[327008772,1715709046374,-985.51,0.00012876,2]
[327008775,1715709046384,-985.51,0.00012876,2]
[327008778,1715709046393,-896.74,0.00012876,2]
[327008781,1715709046402,-896.74,0.00012876,2]
[327008783,1715709046411,-896.74,0.00012876,2]
[327008786,1715709046423,-896.74,0.00012876,2]
[327008788,1715709046432,-500.0,0.00012876,2]
[327008790,1715709046441,-500.0,0.00012876,2]
[327008792,1715709046450,-896.74,0.00012876,2]
[327008794,1715709046460,-500.0,0.00012876,2]
[327008796,1715709046469,-896.74,0.00012876,2]
[327008798,1715709046478,-500.0,0.00012876,2]
[327008800,1715709046488,-896.74,0.00012876,2]
[327008801,1715709046497,-500.0,0.00012876,2]
[327008802,1715709046506,-896.74,0.00012876,2]
[327008803,1715709046515,-500.0,0.00012876,2]
[327008804,1715709046524,-896.74,0.00012876,2]
[327008805,1715709046534,-528.00992943,0.00012876,2]
[327008806,1715709046544,-896.74,0.00012876,2]
[327008807,1715709046553,-896.74,0.00012876,2]
[327008808,1715709046563,-896.74,0.00012876,2]
[327008809,1715709046572,-903.77,0.00012876,2]
[327008810,1715709046583,-903.77,0.00012876,2]
[327008811,1715709046592,-903.77,0.00012876,2]
[327008812,1715709046602,-903.77,0.00012876,2]
[327008813,1715709046611,-903.77,0.00012876,2]
[327008814,1715709046620,-903.77,0.00012876,2]
[327008815,1715709046630,-903.77,0.00012876,2]
[327008816,1715709046639,-903.77,0.00012876,2]
[327008817,1715709046649,-903.77,0.00012876,2]
[327008818,1715709046659,-903.77,0.00012876,2]
[327008819,1715709046672,-500.0,0.00012876,2]
[327008820,1715709046682,-500.0,0.00012876,2]
[327008821,1715709046691,-500.0,0.00012876,2]
[327008822,1715709046700,-500.0,0.00012876,2]
[327008823,1715709046709,-500.0,0.00012876,2]
[327008824,1715709046718,-500.0,0.00012876,2]
[327008825,1715709046727,-500.0,0.00012876,2]
[327008826,1715709046736,-500.0,0.00012876,2]
[327008827,1715709046744,-500.0,0.00012876,2]
[327008828,1715709046755,-500.0,0.00012876,2]
[327008829,1715709046765,-500.0,0.00012876,2]
[327008830,1715709046774,-500.0,0.00012876,2]